Cogmind - Beta 13 @@@ ROGUE MODE // 2024.03.25 @ 14:57:51 Player: Julie Result: Destroyed by as-48552 with Assembled Heavy Rifle Performance ------------- Evolutions (0) 0 Regions Visited (2) 400 Robots Destroyed (12) 60 Value Destroyed (277) 277 Prototype IDs (0) 0 Alien Tech Used (0) 0 Bonus (0) 0 TOTAL SCORE: 737 Bonus ------- None Cogmind --------- Core Integrity 0/250 Matter 294/300 Energy 100/100 System Corruption 0% Temperature Warning (300) Movement Core (150) Ox2 Location -10/Mines Parts ------- > --- POWER (1) -------- (None) > --- PROPULSION (2) --- (None) > --- UTILITY (2) ------ Small Storage Unit > --- WEAPON (2) ------- Particle Gun > --- INVENTORY (8) ---- Light Nuclear Core Flight Unit Flight Unit Flight Unit Flight Unit Flight Unit Small Battery (100) Medium Laser Peak State ------------ > --- POWER ------------ Light Ion Engine > --- PROPULSION ------- Flight Unit Flight Unit > --- UTILITY ---------- Small Storage Unit > --- WEAPON ----------- Particle Gun Light Assault Rifle > --- INVENTORY -------- Ion Engine Light Nuclear Core Flight Unit Flight Unit Flight Unit Flight Unit Medium Laser Assault Rifle [Rating: 8] Favorites ----------- Power Light Ion Engine Engine Light Ion Engine Propulsion Aluminum Leg Leg Aluminum Leg Hover Unit Hover Unit Flight Unit Flight Unit Utility Small Storage Unit Storage Small Storage Unit Weapon Assault Rifle Energy Gun Particle Gun Ballistic Gun Assault Rifle Build | -11 -10 -10 ------- Run | Yrd Mat Min Slots Evolved . | . . . Power . | . . . Propulsion . | . . . Utility . | . . . Weapon . | . . . Parts Attached 15 | 7 8 . Power 3 | 1 2 . Engine 3 | 1 2 . Core . | . . . Reactor . | . . . Propulsion 6 | 2 4 . Treads . | . . . Leg 2 | 2 . . Wheel . | . . . Hover 2 | . 2 . Flight 2 | . 2 . Utility 1 | 1 . . Device . | . . . Storage 1 | 1 . . Processor . | . . . Hackware . | . . . Protection . | . . . Artifact . | . . . Weapon 5 | 3 2 . Energy Gun 2 | 1 1 . Energy Cannon . | . . . Ballistic Gun 3 | 2 1 . Ballistic Cannon . | . . . Launcher . | . . . Special Weapon . | . . . Impact Weapon . | . . . Slashing Weapon . | . . . Piercing Weapon . | . . . Special Melee Weapon . | . . . Unidentified Prototypes . | . . . Parts Lost 6 | . 2 4 Power 2 | . 1 1 Propulsion 3 | . 1 2 Utility . | . . . Weapon 1 | . . 1 Highest Loss Streak 4 | . 2 4 To Critical Strikes . | . . . Average Slot Usage (%) 79 | . 81 66 Engine 11 | . 12 9 Leg 12 | . 14 . Hover 4 | . 2 18 Flight 8 | . 9 . Storage 14 | . 14 14 Energy Gun 4 | . 3 14 Ballistic Gun 22 | . 24 9 Naked Turns . | . . . Heaviest Build 14 | 12 14 12 Greatest Support 20 | 20 20 12 Greatest Overweight (x) 3 | 3 2 2 Average Overweight (x) . | . . . Largest Inventory Capacity 8 | 8 8 8 Average Capacity 7 | 7 8 8 Most Carried 8 | 2 8 8 Average Carried 4 | 1 5 8 Final Capacity 8 | 8 8 8 Final Carried 8 | 2 8 8 Class Distribution -------------------- 79% | Mutant 20% | Scavenger-Mutant Dominant Class ---------------- Mutant | -10/Materials Mutant | -10/Mines Resources | -11 -10 -10 ----------- Run | Yrd Mat Min Matter Collected 430 | 244 186 . Remotely . | . . . Salvage Created 374 | . 333 41 Parts 30 | . 30 . Haulers Intercepted . | . . . Recyclers Shooed . | . . . Parts Field Recycled . | . . . Retrieved Matter . | . . . Parts Self-Destructed . | . . . Prevented . | . . . Kills | -11 -10 -10 ------- Run | Yrd Mat Min Combat Hostiles Destroyed 15 | . 12 3 Guns 15 | . 12 3 Classes Destroyed 3 | . 2 1 Swarmer 6 | . 6 . Grunt 6 | . 6 . Assembled 3 | . . 3 Best Kill Streak 10 | . 10 3 Combat Bots Only 10 | . 10 3 Max Kills in Single Turn 1 | . 1 1 Gunslinging . | . . . Exploded . | . . . Melee . | . . . Uniques/NPCs Destroyed . | . . . Combat | -11 -10 -10 -------- Run | Yrd Mat Min Hostile Shots Fired 89 | . 44 45 Missed 15 | . 6 9 Damage Taken 880 | . 366 514 Core 263 | . 23 240 Absorbed by Shields . | . . . Core Remaining (%) 100 | 100 . . Volleys Fired 33 | . 22 11 Largest 2 | . 2 2 Hottest 85 | . 85 85 Shots Fired 59 | . 44 15 Gun 59 | . 44 15 Cannon . | . . . Launcher . | . . . Special . | . . . Kinetic 46 | . 42 4 Thermal 13 | . 2 11 Explosive . | . . . Electromagnetic . | . . . Robot Hit Streak 9 | . 9 6 Robot Miss Streak 7 | . 3 7 Penetration Max . | . . . Secondary Targets 5 | . 4 1 Max Gunslinging Chain 1 | . 1 1 Shots Hit Robots 38 | . 30 8 Core Hits 26 | . 19 7 Critical Kills 1 | . . 1 Critical Parts Destroyed . | . . . Critical Strikes 1 | . . 1 Destroy 1 | . . 1 Melee Attacks . | . . . Impact . | . . . Slashing . | . . . Piercing . | . . . Sneak Attacks . | . . . Combat Hostiles . | . . . Follow-up Attacks . | . . . Damage Inflicted 493 | . 355 138 Guns 493 | . 355 138 Cannons . | . . . Explosions . | . . . Melee . | . . . Ramming . | . . . Kinetic 379 | . 355 24 Thermal 114 | . . 114 Explosive . | . . . Electromagnetic . | . . . Impact . | . . . Slashing . | . . . Piercing . | . . . Highest Corruption . | . . . Average Corruption . | . . . Corruption Purged . | . . . Corruption Blocked . | . . . Overload Shots . | . . . Overflow Damage . | . . . Projectiles . | . . . Explosions . | . . . Melee . | . . . Knockbacks . | . . . Impact . | . . . Kinetic . | . . . Secondary . | . . . Self-Inflicted Damage . | . . . Shots . | . . . Rammed . | . . . Targets Rammed . | . . . Kicked . | . . . Crushed . | . . . Highest Temperature 313 | . 48 313 Average Temperature 138 | . 15 212 Received Heat Transfer 305 | . 105 200 Effects 1 | . . 1 Energy Bleed 1 | . . 1 Siege Activations . | . . . Robots Corrupted . | . . . Combat Hostiles . | . . . Parts Fried . | . . . Impact Corruptions . | . . . Robots Melted . | . . . Combat Hostiles . | . . . Parts Melted . | . . . Heat Transferred 259 | . . 259 Parts Sabotaged . | . . . Parts Stolen . | . . . Parts Stripped . | . . . Power Chain Reactions . | . . . Alert | -11 -10 -10 ------- Run | Yrd Mat Min Peak Influence 306 | . 306 118 Initial 118 | . . 118 Average 109 | . 138 103 Maximum Alert Level 1 | . 1 . Low Security (%) 67 | 100 53 100 Level 1 32 | . 46 . Level 2 . | . . . Level 3 . | . . . Level 4 . | . . . Level 5 . | . . . High Security . | . . . Max Security . | . . . Squads Dispatched 1 | . 1 . Investigation . | . . . Extermination . | . . . Reinforcement 1 | . 1 . Assault . | . . . Garrison . | . . . Intercept . | . . . Searches Triggered . | . . . Construction Impeded . | . . . Haulers Reinforced . | . . . Active Scanning Responses . | . . . Cargo Convoy Interrupts . | . . . Stealth | -11 -10 -10 --------- Run | Yrd Mat Min Distress Signals 1 | . 1 . Communications Jammed . | . . . Distress Signals . | . . . Times Spotted 24 | . 16 8 Peak Tracking Total 8 | . 8 8 Tactical Retreats . | . . . Traps | -11 -10 -10 ------- Run | Yrd Mat Min Traps Triggered . | . . . Indirectly . | . . . Trap Hack Attempts . | . . . Triggered . | . . . Disarmed . | . . . Reprogrammed . | . . . Reused . | . . . Traps Extracted . | . . . Installed . | . . . Triggered . | . . . Machines | -11 -10 -10 ---------- Run | Yrd Mat Min Machines Disabled . | . . . Max in Single Turn . | . . . Machines Repaired . | . . . Machines Dismantled . | . . . Machines Sabotaged . | . . . Overloaded Fab Kills . | . . . Hacking | -11 -10 -10 --------- Run | Yrd Mat Min Machines Accessed . | . . . Terminals . | . . . Fabricators . | . . . Repair Stations . | . . . Recycling Units . | . . . Scanalyzers . | . . . Garrison Access . | . . . Total Hacks . | . . . Successful . | . . . Failed . | . . . Catastrophic . | . . . Database Lockouts . | . . . Manual . | . . . Terminals . | . . . Fabricators . | . . . Repair Stations . | . . . Recycling Units . | . . . Scanalyzers . | . . . Garrison Access . | . . . Terminal Hacks . | . . . Fabricator Hacks . | . . . Repair Station Hacks . | . . . Recycling Unit Hacks . | . . . Scanalyzer . | . . . Garrison Access Hacks . | . . . Unauthorized Hacks . | . . . Terminals . | . . . Fabricators . | . . . Repair Stations . | . . . Recycling Units . | . . . Scanalyzers . | . . . Garrison Access . | . . . Data Cores Recovered . | . . . Used . | . . . Hacking Detections . | . . . Full Trace Events . | . . . Feedback Events . | . . . Feedback Blocked . | . . . Robot Schematics Acquired . | . . . Robots Built . | . . . Authchips . | . . . Time . | . . . Total Robot Build Rating . | . . . Part Schematics Acquired . | . . . Parts Built . | . . . Authchips . | . . . Time . | . . . Total Part Build Rating . | . . . Parts Repaired . | . . . Time . | . . . Parts Recycled . | . . . Recycled Matter . | . . . Retrieved Matter . | . . . Retrieved Components . | . . . Parts Scanalyzed . | . . . Part Schematics Acquired . | . . . Parts Damaged . | . . . Bothacking | -11 -10 -10 ------------ Run | Yrd Mat Min Used RIF Installer . | . . . Robots Hacked . | . . . Non-combat . | . . . Combat . | . . . Robot Hacks Applied . | . . . Relay Couplers Released . | . . . Fabnet Peak Effective % . | . . . Robots Rewired . | . . . Allies Hacked . | . . . Hacks Repelled . | . . . Allies | -11 -10 -10 -------- Run | Yrd Mat Min Total Allies . | . . . Largest Group . | . . . Highest-Rated Group . | . . . Highest-Rated Ally . | . . . Total Orders . | . . . Ally Attacks . | . . . Total Damage . | . . . Kills . | . . . Allies Corrupted . | . . . Allies Melted . | . . . Intel | -11 -10 -10 ------- Run | Yrd Mat Min Robot Analysis Total . | . . . Derelict Logs Recovered . | . . . Drone Launches . | . . . Drone Recoveries . | . . . Exploration | -11 -10 -10 ------------- Run | Yrd Mat Min Turns Passed 504 | 90 357 57 Spaces Moved 338 | 68 238 32 Core 42 | 27 12 3 Treads . | . . . Legs 154 | 41 113 . Wheels . | . . . Hover 91 | . 62 29 Flight 51 | . 51 . Fastest Speed 50 | 50 56 56 Average Speed 102 | 115 104 64 Slowest Speed 200 | 200 150 150 Overloaded Moves . | . . . Propulsion Burnouts . | . . . Robots Hopped . | . . . Cave-ins Triggered . | . . . Exploration Rate (%) 16 | 4 39 6 Regions Visited 2 Branch Regions 1 Pre-discovered Areas . | . . . Known Exits Taken . | . . . Unknown Exits Taken 2 | 1 1 . Scrap Searched . | . . . Spaces Dug . | . . . Terrain Destroyed . | . . . Melee . | . . . Projectile . | . . . AOE . | . . . Terrain Rammed . | . . . Walls Destroyed . | . . . Machines Disabled . | . . . Actions | -11 -10 -10 --------- Run | Yrd Mat Min Total 436 | 76 306 54 Wait 28 | . 17 11 Move 336 | 67 237 32 Hop . | . . . Pick Up 14 | 2 12 . Fast Attach 10 | 6 4 . Attach 3 | . 3 . Detach 2 | . 2 . Swap 2 | 1 1 . Drop 8 | . 8 . Fire 33 | . 22 11 Melee . | . . . Ram . | . . . Kick . | . . . Crush . | . . . Escape Stasis . | . . . Rewire . | . . . Trap . | . . . Miscellaneous . | . . . Route ------- -11/Scrapyard -10/Materials -10/Mines History --------- Turn | Location | Event 7 | -11/Scrapyard | Discovered new exit (range 15) 91 | -11/Scrapyard | Entered Materials 303 | -10/Materials | Destroyed 10 combat bots 424 | -10/Materials | Discovered new exit (range 9) 448 | -10/Materials | Entered Mines 466 | -10/Mines | Assembled infested the area 471 | -10/Mines | Met a Derelict bent on vengeance 471 | -10/Mines | Assisted by a Guerilla fighting off Assembled 490 | -10/Mines | Core integrity fell below 50% 502 | -10/Mines | Core integrity fell below 20% 505 | -10/Mines | Destroyed by as-48552 with Assembled Heavy Rifle Last Messages --------------- group of Assembled to figure out where they're coming from, and they're closing on this area, come on!" 00472_ BA-4Z8(h): "I'll hold them off! Go on ahead or try to find another way!" 00472_ HV Slug penetrates Wall. 00475_ BA-4Z8(h) destroyed. 00481_ as-78816 suffers critical hit (Destroy). 00481_ as-78816 destroyed. 00481_ Switching to secondary target: as-76292. 00483_ Lgt. Ion Engine destroyed. 00485_ Hover Unit destroyed. 00485_ Lgt. Assault Rifle destroyed. 00487_ as-76292 destroyed. 00487_ Hover Unit destroyed. 00494_ Overheating: Energy bleed (-10). 00499_ as-23407 destroyed. 00502_ as-87570 suffers critical hit (Burn). 00502_ as-87570 destroyed. 00504_ as-98305 destroyed. Map ----- +----------------------------------------------------+ | | | | | | | | | | | | | | | | | | | | | | | | | | | | | | | | | | | | | ??????????????????????????????????????????????? | | ??????????????????????????????????????????????? | | ??????????????????????????????????????????????? | | ??????#######?????????????????????????????????? | | ?????## #############?????????????????????? | | ?????# ####??????????????????? | | ?????# #########g%a #??????????????????? | | ?????#### ###???????#@aa #??????????????????? | | ????????###??????????#### #??????????????????? | | ????????????????????????#%%#??????????????????? | | ????????????????????????# #??????????????????? | | ????????????????????????# #??????????????????? | | ????????????????????????# ]#??????????????????? | | ????????????????????????#!%#??????????????????? | | ????????????????????????#!=#??????????????????? | | ????????????????????????# #??????????????????? | | ????????????????????????# ??????????????????? | | ???????????????????????? ??????????????????? | | ???????????????????????? ?????????????????? | | ???????????????????????? ?????????????????? | | ??????????????????????? #### ????????????????? | | ??????????????????????? ????# ????????????????? | | ??????????????????????? ????? ???????????????? | | ??????????????????????? ????? ???????????????? | | ??????????????????????#??????? ??????????????? | | ?????????????????????????????? ??????????????? | | ??????????????????????????????????????????????? | | ??????????????????????????????????????????????? | | ??????????????????????????????????????????????? | | ??????????????????????????????????????????????? | | ??????????????????????????????????????????????? | | ??????????????????????????????????????????????? | +----------------------------------------------------+ Best States ------------- Heat Dissipation 25 Energy Generation 10 Energy Capacity 250 Matter Stores 300 Matter Capacity 300 Sight Range 16 Terrain Scan Density 10 Evasion (%) 55 Item Schematics ----------------- None Robot Schematics ------------------ None Fabricated ------------ Nothing Alien Tech Used ----------------- None Achievements -------------- None Challenges ------------ None Game ------ Seed SniperFissionSpear Manual? 0 Play Time 00:06:37 Cumulative 17.7 hours Start 2024.03.25 @ 14:52:10 End 2024.03.25 @ 14:57:51 Sessions 1 Manual Loads 0 Difficulty Rogue Special Mode None Game No. 55 Rogue 55 Adventurer 0 Explorer 0 Win Type - Total 0 Types 0/0/0/0/0/0/0/0/0 Lore% 14 Gallery% 24 Achievement% 19 Wizard Run 0 Options --------- Layout 1 ASCII 0 Keyboard 1 Movement Numpad Keybinds 0 Fullscreen 2 Font 24/Terminus Map View 50x35 Zoom Use 0% Tactical HUD 1 Map Filters NONE Filters NONE Steam 1 RUN: 150e166f-6fc8-4b78-93cc-7b43047e0594